fUSD/lending_fUSD_20241223
["ID","MTS","AMOUNT","RATE_DAILY","PERIOD"]
[346375280,1734921043865,-520.7752296,0.00019999,2]
[346375281,1734921043874,-501.83499858,0.00019999,2]
[346375282,1734921043883,-513.92,0.00019999,2]
[346375283,1734921043893,-500.0,0.00019999,2]
[346375284,1734921043903,-502.97424383,0.00019999,2]
[346375285,1734921043913,-500.0,0.00019999,2]
[346375286,1734921043922,-728.88,0.00019999,2]
[346375287,1734921043932,-500.0,0.00019999,2]
[346375288,1734921043942,-1256.19,0.00019999,2]
[346375289,1734921043952,-610.90324471,0.00019999,2]
[346375290,1734921043961,-701.47,0.00019999,2]
[346375291,1734921043971,-819.82,0.00019999,2]
[346375292,1734921043981,-500.0,0.00019999,2]
[346375293,1734921043991,-1945.75,0.00019999,2]
[346375294,1734921044007,-248.7023852,0.00019999,2]
[346375295,1734921044021,-852.72,0.00019999,2]
[346375296,1734921044031,-506.85311369,0.00019999,2]
[346375298,1734921044041,-500.0,0.00019999,2]
[346375300,1734921044051,-1000.0,0.00019999,2]
[346375302,1734921044060,-1945.16,0.00019999,2]
[346375304,1734921044070,-1840.99,0.00019999,2]
[346375306,1734921044080,-655.3,0.00019999,2]
[346375308,1734921044092,-3778.17,0.00019999,2]
[346375310,1734921044102,-692.62,0.00019999,2]
[346375312,1734921044112,-500.0,0.00019999,2]
[346375314,1734921044121,-1727.76,0.00019999,2]
[346375316,1734921044131,-502.95096967,0.00019999,2]
[346375318,1734921044141,-508.85565619,0.00019999,2]
[346375320,1734921044151,-503.43863896,0.00019999,2]
[346375322,1734921044160,-512.27392649,0.00019999,2]
[346375324,1734921044169,-238.04630324,0.00019999,2]
[346375326,1734921044179,-2067.85,0.00019999,2]
[346375328,1734921044189,-644.76397331,0.00019999,2]
[346375330,1734921044198,-500.0,0.00019999,2]
[346375332,1734921044208,-642.01048405,0.00019999,2]
[346375334,1734921044217,-500.0,0.00019999,2]
[346375336,1734921044227,-500.0,0.00019999,2]
[346375337,1734921044237,-500.0,0.00019999,2]
[346375338,1734921044247,-520.24,0.00019999,2]
[346375339,1734921044258,-684.85,0.00019999,2]
[346375340,1734921044277,-1547.39,0.00019999,2]
[346375341,1734921044287,-1393.83,0.00019999,2]
[346375342,1734921044297,-504.02212258,0.00019999,2]
[346375343,1734921044307,-500.0,0.00019999,2]
[346375344,1734921044316,-504.03857432,0.00019999,2]
[346375345,1734921044326,-877.74,0.00019999,2]
[346375346,1734921044335,-509.36741799,0.00019999,2]
[346375347,1734921044347,-675.45,0.00019999,2]
[346375348,1734921044356,-500.0,0.00019999,2]
[346375349,1734921044365,-715.76,0.00019999,2]
[346375350,1734921044374,-557.7,0.00019999,2]
[346375351,1734921044383,-500.0,0.00019999,2]
[346375352,1734921044392,-905.14,0.00019999,2]
[346375353,1734921044401,-500.0,0.00019999,2]
[346375354,1734921044411,-796.49,0.00019999,2]
[346375355,1734921044420,-1826.78,0.00019999,2]
[346375356,1734921044429,-500.0,0.00019999,2]
[346375357,1734921044438,-13069.7811,0.0002,2]
[346375358,1734921044449,-1260426.90527234,0.0002,3]
[346375359,1734921044458,-15430.8101883,0.0002,2]
[346375360,1734921044468,-10284.3370835,0.0002,3]
[346375361,1734921044477,-7017894.77505244,0.0002,2]
[346375362,1734921044700,-508.03970887,0.00019772,2]
[346375363,1734921044710,-451.9138411,0.00019772,2]
[346375364,1734921044792,-48.0861589,0.00019772,2]
[346375365,1734921044802,-451.90209635,0.00019945,2]
[346375366,1734921045515,-500.0,0.00019772,2]
[346375367,1734921045525,-718.09790365,0.00019945,2]
[346375368,1734921045535,-500.0,0.00019999,2]
[346375369,1734921045546,-64482.56271656,0.0002,2]
[346375370,1734921045560,-500.0,0.0002,2]
[346375382,1734921046743,-150.0,0.00019945,2]
[346375383,1734921046753,-153.0,0.00019992,2]
[346375384,1734921046762,-500.0,0.00019999,2]
[346375385,1734921046771,-150.0,0.00019999,2]
[346375386,1734921046780,-1997.60502059,0.0002,2]
[346375387,1734921046793,-327.67081309,0.0002,2]
[346375388,1734921046804,-11988.7301691,0.0002,2]
[346375389,1734921046887,-153.0,0.00019992,2]
[346375390,1734921046896,-9235.9,0.0002,2]
[346375541,1734921215701,328.11,0.00010137,2]
[346375543,1734922155149,-245.0,0.00016813,2]
[346375547,1734922231697,-83.11,0.00016813,2]
[346375548,1734922231707,-474.21871551,0.00017004,2]
[346375549,1734922231719,-218.51128449,0.00017004,2]
[346375550,1734922231729,-180.49543297,0.0001763,2]
[346375551,1734922231739,-162.2289733,0.0001763,2]
[346375552,1734922231748,-201.51469183,0.0001763,2]
[346375553,1734922231757,-1098.44247895,0.00018481,2]
[346375554,1734922231929,-490.06752105,0.00018481,2]
[346375555,1734922231939,-1000.0,0.00018481,2]
[346375556,1734922231948,-262.01,0.00018489,2]
[346375557,1734922231958,-250.0,0.00018737,2]
[346375558,1734922231967,-300.0,0.00018837,2]
[346375559,1734922231976,-237.48,0.00018934,2]
[346375560,1734922231985,-255.21,0.00018935,2]
[346375561,1734922231994,-150.0,0.00018986,2]
[346375562,1734922232004,-282.405,0.00019,2]
[346375563,1734922232013,-300.0,0.000191,4]
[346375564,1734922232022,-300.0,0.000191,2]
[346375565,1734922232031,-300.0,0.000191,3]
[346375566,1734922232040,-692.73,0.00019268,2]
[346375567,1734922232049,-1137.42256024,0.000194,2]
[346375568,1734922232058,-1230.36909673,0.000195,2]
[346375569,1734922232068,-1230.36909664,0.00019508,2]
[346375570,1734922232076,-1230.36909664,0.00019516,2]
[346375571,1734922232086,-1230.36909664,0.00019524,2]
[346375572,1734922232095,-1230.36909664,0.00019532,2]
[346375573,1734922232105,-1230.36909664,0.00019539,2]
[346375574,1734922232115,-1230.36909664,0.00019547,2]
[346375575,1734922232124,-1082.3096308,0.00019555,2]
[346375576,1734922232136,-148.05946584,0.00019555,2]
[346375577,1734922232146,-426.17966194,0.00019563,2]
[346375578,1734922232157,-804.1894347,0.00019563,2]
[346375579,1734922232167,-22.01049081,0.00019571,2]
[346375580,1734922232194,-1208.35860583,0.00019571,2]
[346375581,1734922232204,-1599.55662736,0.00019598,14]
[346375582,1734922232215,-889.58382764,0.00019598,14]
[346375583,1734922232226,-818.48314795,0.00019598,14]
[346375584,1734922232237,-511.8,0.00019598,14]
[346375611,1734922237603,-2500.0,0.000195,2]
[346375612,1734922237614,-1060.75112495,0.00019598,14]
[346375613,1734922237625,-9551.96517079,0.00019598,14]
[346375614,1734922237637,-1572.82199258,0.00019598,14]
[346375615,1734922237649,-14868.4913139,0.00019598,14]
[346375617,1734922237659,-1010.93557497,0.00019599,2]
[346375619,1734922237668,-529.68895903,0.00019599,2]
[346375621,1734922237678,-516.67306467,0.00019599,2]
[346375623,1734922237689,-342.03063553,0.00019599,2]
[346375624,1734922237700,-500.0,0.00019599,2]
[346375625,1734922237710,-507.83736474,0.00019599,2]
[346375626,1734922237720,-503.12499703,0.00019599,2]
[346375627,1734922237730,-3893.09,0.00019599,2]
[346375628,1734922237739,-500.0,0.00019599,2]
[346375629,1734922237749,-509.27220302,0.00019599,2]
[346375630,1734922237759,-500.0,0.00019599,2]
[346375631,1734922237779,-715.21,0.00019599,2]
[346375632,1734922237792,-500.0,0.00019599,2]
[346375633,1734922237803,-632.74,0.00019599,2]
[346375634,1734922237817,-692.68,0.00019599,2]
[346375635,1734922237827,-3771.712222,0.00019599,2]
[346375636,1734922237838,-1212.57,0.00019599,2]
[346375637,1734922237849,-159.297645,0.00019599,2]
[346375638,1734922237859,-3093.818008,0.00019599,2]
[346375639,1734922237870,-516.38359807,0.00019599,2]
[346375640,1734922237881,-2191.68,0.00019599,2]
[346375641,1734922237896,-507.0368413,0.00019599,2]
[346375642,1734922237907,-561.06,0.00019599,2]
[346375643,1734922237917,-2620.56,0.00019599,2]
[346375644,1734922237927,-653.83,0.00019599,2]
[346375645,1734922237937,-509.44345181,0.00019599,2]
[346375646,1734922237947,-644.52,0.00019599,2]
[346375647,1734922237958,-500.51,0.00019599,2]
[346375648,1734922237968,-713.46,0.00019599,2]
[346375649,1734922237979,-503.64,0.00019599,2]
[346375650,1734922237990,-485.70305669,0.00019599,2]
[346375651,1734922238004,-313.58694331,0.00019599,2]
[346375652,1734922238014,-500.0,0.00019599,2]
[346375653,1734922238024,-214.31370378,0.00019599,2]
[346375654,1734922238084,-833.69583873,0.00019599,2]
[346375655,1734922238096,-414.04045749,0.00019599,2]
[346375656,1734922238107,-728.88,0.00019599,2]
[346375657,1734922238116,-500.0,0.00019599,2]
[346375658,1734922238126,-562.54,0.00019599,2]
[346375660,1734922238136,-1839.24,0.00019599,2]
[346375661,1734922238146,-819.82,0.00019599,2]
[346375662,1734922238156,-500.0,0.00019599,2]
[346375663,1734922238166,-500.0,0.00019599,2]
[346375664,1734922238176,-569.9,0.00019599,2]
[346375665,1734922238186,-94.86244923,0.00019599,2]
[346375666,1734922238198,-2591.66755077,0.00019599,2]
[346375667,1734922238208,-852.72,0.00019599,2]
[346375668,1734922238217,-233.72264791,0.00019599,2]
[346375669,1734922238229,-1494.03735209,0.00019599,2]
[346375670,1734922238238,-288.85264794,0.00019599,2]
[346375671,1734922238374,-710.01735206,0.00019599,2]
[346375672,1734922238385,-672.96,0.00019599,2]
[346375674,1734922238395,-3778.17,0.00019599,2]
[346375676,1734922238404,-500.0,0.00019599,2]
[346375677,1734922238414,-1164.76,0.00019599,2]
[346375678,1734922238424,-500.0,0.00019599,2]
[346375679,1734922238434,-520.24,0.00019599,2]
[346375680,1734922238443,-506.35177685,0.00019599,2]
[346375681,1734922238453,-500.0,0.00019599,2]
[346375682,1734922238462,-1023.98,0.00019599,2]
[346375683,1734922238471,-800.13,0.00019599,2]
[346375684,1734922238481,-500.0,0.00019599,2]
[346375685,1734922238491,-500.0,0.00019599,2]
[346375686,1734922238501,-675.45,0.00019599,2]
[346375687,1734922238510,-500.0,0.00019599,2]
[346375688,1734922238519,-500.0,0.00019599,2]
[346375689,1734922238529,-566.77,0.00019599,2]
[346375690,1734922238538,-500.0,0.00019599,2]
[346375691,1734922238548,-500.0,0.00019599,2]
[346375692,1734922238558,-2952.22,0.00019599,2]
[346375693,1734922238572,-518.35,0.00019599,2]
[346375694,1734922238582,-557.7,0.00019599,2]
[346375695,1734922238591,-508.03970887,0.00019599,2]
[346375696,1734922238601,-500.0,0.00019599,2]
[346375697,1734922238611,-752.64,0.00019599,2]
[346375698,1734922238621,-500.0,0.00019599,2]
[346375699,1734922238631,-500.78622625,0.00019599,2]
[346375700,1734922238641,-500.0,0.00019599,2]
[346375701,1734922238650,-500.0,0.00019599,2]
[346375702,1734922238660,-380.67641698,0.00019599,2]
[346375703,1734922238669,-500.0,0.00019599,2]
[346375704,1734922238679,-720.68,0.00019599,2]
[346375705,1734922238689,-500.0,0.00019599,2]
[346375706,1734922238699,-755.79,0.00019599,2]
[346375707,1734922238708,-526.59,0.00019599,2]
[346375708,1734922238717,-300.0,0.00019599,2]
[346375709,1734922238727,-1260426.90527234,0.000196,3]
[346375710,1734922238737,-15430.8101883,0.000196,2]
[346375711,1734922238747,-10284.3370835,0.000196,3]
[346375712,1734922238756,-1079.56527394,0.000196,2]
[346375713,1734922238766,-435.85,0.000196,2]
[346375714,1734922238775,-1666.48,0.000196,2]
[346375715,1734922238785,-155.23,0.000196,2]
[346375716,1734922238795,-150.0,0.000196,2]
[346375717,1734922238804,-150.0,0.000196,2]
[346375718,1734922238815,-150.0,0.000196,2]
[346375719,1734922238824,-5026911.60206677,0.000196,2]
[346375720,1734922238837,-769.96443153,0.000196,2]
[346375721,1734922238848,-292.04521374,0.000196,2]
[346375722,1734922238860,-358.16823312,0.000196,2]
[346375723,1734922238871,-355.72,0.000196,2]
[346375724,1734922238886,-712.75660202,0.000196,2]
[346375725,1734922238898,-1271.09,0.000196,2]
[346375726,1734922239687,-634.00884309,0.000196,2]
[346375729,1734922239921,-2689.37787281,0.000196,2]
[346375730,1734922239933,-424.23408997,0.000196,2]
[346375731,1734922239944,-6146.36406585,0.000196,2]
[346375736,1734922242615,-500.0,0.00019599,2]
[346375737,1734922242625,-685.41,0.00019599,2]
[346375738,1734922242635,-500.0,0.00019599,2]
[346375740,1734922242644,-25401.31937982,0.000196,2]
[346375742,1734922242656,-8091.20441913,0.000196,2]
[346375744,1734922243144,-699.5899999,0.000196,2]
[346375745,1734922243155,-424.49932413,0.000196,2]
[346375746,1734922243402,-9392.6,0.000196,2]
[346375747,1734922243414,-301.82971292,0.000196,2]
[346375748,1734922243425,-8029.09884256,0.000196,2]
[346375749,1734922245758,-1199.4,0.000196,2]
[346375750,1734922245770,-16186.5164839,0.000196,2]
[346375752,1734922246003,-5261.30314971,0.000196,2]
[346375753,1734922246015,-1096.10938584,0.000196,2]
[346376025,1734922279173,158.69,0.00010137,2]
[346376027,1734923347146,-655.82,0.0001645,2]
[346376028,1734923347167,-1242.17,0.00017579,2]
[346376029,1734923347192,-150.0,0.0001763,2]
[346376030,1734923347213,-150.0,0.0001763,2]
[346376031,1734923347235,-150.0,0.0001763,2]
[346376032,1734923347257,-157.197108,0.0001764,3]
[346376033,1734923347279,-150.0,0.00017666,2]
[346376034,1734923347300,-150.0,0.000177,2]
[346376035,1734923347323,-150.0,0.00017701,2]
[346376036,1734923347346,-150.0,0.00017737,2]
[346376037,1734923347367,-150.0,0.00017753,2]
[346376038,1734923347388,-150.0,0.0001777,2]
[346376039,1734923347411,-150.0,0.00017773,2]
[346376040,1734923347434,-78.955222,0.00017808,2]
[346376045,1734923432028,-71.044778,0.00017808,2]
[346376046,1734923432037,-150.0,0.0001784,2]
[346376047,1734923432047,-150.0,0.00017844,2]
[346376048,1734923432056,-150.0,0.00017875,2]
[346376049,1734923432066,-150.0,0.00017879,2]
[346376050,1734923432076,-150.0,0.0001791,2]
[346376051,1734923432085,-150.0,0.00017915,2]
[346376052,1734923432095,-150.0,0.00017951,2]
[346376053,1734923432104,-150.0,0.0001798,2]
[346376054,1734923432114,-150.0,0.00017986,2]
[346376055,1734923432123,-150.0,0.00017997,2]
[346376056,1734923432132,-150.0,0.00018022,2]
[346376057,1734923432141,-150.0,0.0001805,2]
[346376058,1734923432151,-150.0,0.00018058,2]
[346376059,1734923432160,-150.0,0.00018093,2]
[346376060,1734923432170,-150.0,0.0001812,2]
[346376061,1734923432179,-150.0,0.0001812,2]
[346376062,1734923432189,-150.0,0.00018129,2]
[346376063,1734923432202,-150.0,0.00018164,2]
[346376064,1734923432212,-150.0,0.0001819,2]
[346376065,1734923432221,-150.0,0.000182,2]
[346376066,1734923432230,-150.0,0.00018236,2]
[346376067,1734923432241,-150.0,0.00018242,2]
[346376068,1734923432251,-250.0,0.00018258,2]
[346376069,1734923432262,-150.0,0.0001826,2]
[346376070,1734923432272,-150.0,0.00018271,2]
[346376071,1734923432282,-1000.0,0.00018287,2]
[346376072,1734923432293,-150.0,0.00018307,2]
[346376073,1734923432303,-1529.8381311,0.00018315,2]
[346376074,1734923432315,-575.3418689,0.00018315,2]
[346376075,1734923432324,-250.0,0.00018317,2]
[346376076,1734923432334,-150.0,0.0001833,2]
[346376077,1734923432343,-23.7677311,0.00018342,2]
[346376078,1734923432355,-126.2322689,0.00018342,2]
[346376079,1734923432364,-150.0,0.00018365,2]
[346376080,1734923432374,-250.0,0.00018365,2]
[346376081,1734923432383,-150.0,0.00018378,2]
[346376082,1734923432392,-150.0,0.000184,2]
[346376083,1734923432402,-150.0,0.00018414,2]
[346376084,1734923432412,-150.0,0.00018449,2]
[346376085,1734923432421,-150.0,0.0001847,2]
[346376086,1734923432430,-813.06,0.00018471,2]
[346376087,1734923432440,-150.0,0.00018485,2]
[346376088,1734923432450,-150.0,0.00018487,2]
[346376089,1734923432459,-150.0,0.00018521,2]
[346376090,1734923432468,-150.0,0.0001854,2]
[346376091,1734923432477,-150.0,0.00018556,2]
[346376092,1734923432487,-150.0,0.00018592,2]
[346376093,1734923432496,-150.0,0.0001861,2]
[346376094,1734923432505,-150.0,0.0001861,2]
[346376095,1734923432515,-150.0,0.00018627,2]
[346376096,1734923432524,-150.0,0.00018663,2]
[346376098,1734923432533,-150.0,0.00018665,2]
[346376100,1734923432543,-150.0,0.0001868,2]
[346376101,1734923432552,-150.0,0.00018685,2]
[346376103,1734923432562,-423.7072009,0.00018687,2]
[346376105,1734923432571,-150.0,0.00018699,2]
[346376107,1734923432580,-655.82,0.00018714,2]
[346376109,1734923432589,-150.0,0.00018732,2]
[346376111,1734923432600,-150.0,0.00018734,2]
[346376113,1734923432609,-150.0,0.0001875,2]
[346376115,1734923432618,-150.0,0.0001877,2]
[346376117,1734923432627,-150.0,0.00018787,2]
[346376119,1734923432636,-150.0,0.00018805,2]
[346376121,1734923432646,-150.0,0.00018819,2]
[346376123,1734923432655,-150.0,0.00018841,2]
[346376125,1734923432664,-150.0,0.00018854,2]
[346376127,1734923432674,-493.67,0.00018872,2]
[346376129,1734923432685,-150.0,0.00018877,2]
[346376131,1734923432695,-150.0,0.00018889,2]
[346376133,1734923432704,-8500.0,0.000189,2]
[346376134,1734923432714,-150.0,0.00018902,2]
[346376135,1734923432723,-150.0,0.00018912,2]
[346376136,1734923432732,-150.0,0.00018926,2]
[346376137,1734923432741,-150.0,0.00018948,2]
[346376138,1734923432750,-150.0,0.00018959,2]
[346376139,1734923432759,-200.34,0.00018971,2]
[346376140,1734923432768,-150.0,0.00018977,2]
[346376141,1734923432777,-150.0,0.00018984,2]
[346376142,1734923432786,-1004.22827291,0.00019,2]
[346376143,1734923432798,-270.437,0.00019,2]
[346376144,1734923432806,-150.0,0.00019019,2]
[346376145,1734923432815,-150.0,0.00019029,2]
[346376146,1734923432824,-812.15,0.00019041,2]
[346376147,1734923432833,-1540.42,0.00019041,2]
[346376148,1734923432842,-873.6,0.00019041,2]
[346376149,1734923432851,-182.10734614,0.00019041,2]
[346376150,1734923432860,-150.0,0.00019055,2]
[346376151,1734923432869,-150.0,0.0001909,2]
[346376152,1734923432878,-150.0,0.00019099,2]
[346376153,1734923432888,-150.0,0.00019099,2]
[346376154,1734923432898,-150.0,0.00019108,2]
[346376155,1734923432907,-150.0,0.00019115,2]
[346376156,1734923432916,-423.7072009,0.00019122,2]
[346376157,1734923432929,-150.0,0.00019124,2]
[346376158,1734923432941,-150.0,0.00019126,2]
[346376159,1734923432950,-150.0,0.00019162,2]
[346376160,1734923432960,-150.0,0.00019169,2]
[346376161,1734923432969,-976.98,0.00019178,2]
[346376162,1734923432978,-150.52,0.00019178,2]
[346376163,1734923432988,-152.47,0.00019178,2]
[346376164,1734923432997,-331.15,0.00019178,2]
[346376165,1734923433006,-238.21,0.00019178,2]
[346376166,1734923433015,-729.59,0.00019178,2]
[346376167,1734923433025,-436.21,0.00019178,2]
[346376168,1734923433034,-150.0,0.00019178,2]
[346376169,1734923433046,-154.0,0.00019178,2]
[346376170,1734923433056,-150.0,0.00019178,2]
[346376171,1734923433066,-150.0,0.00019178,2]
[346376172,1734923433075,-150.0,0.00019178,2]
[346376173,1734923433084,-150.0,0.00019178,2]
[346376174,1734923433094,-150.0,0.00019178,2]
[346376175,1734923433103,-435.85,0.00019178,2]
[346376176,1734923433112,-150.0,0.00019178,2]
[346376177,1734923433122,-1666.48,0.00019178,2]
[346376178,1734923433132,-150.0,0.00019178,2]
[346376179,1734923433141,-150.0,0.00019178,2]
[346376180,1734923433150,-150.0,0.00019178,2]
[346376181,1734923433159,-150.0,0.00019197,4]
[346376182,1734923433169,-150.0,0.00019211,2]
[346376183,1734923433178,-150.0,0.00019222,4]
[346376184,1734923433188,-150.0,0.00019233,4]
[346376185,1734923433201,-150.0,0.00019239,4]
[346376186,1734923433211,-150.0,0.00019268,4]
[346376187,1734923433220,-273.16101921,0.00019288,2]
[346376188,1734923433230,-273.16101921,0.00019288,2]
[346376189,1734923433241,-182.10734614,0.00019288,2]
[346376190,1734923433250,-5000.0,0.00019299,2]
[346376191,1734923433260,-165.1522,0.00019299,2]
[346376192,1734923433270,-5708.93061228,0.00019299,2]
[346376193,1734923433280,-775.97892442,0.00019299,2]
[346376194,1734923433293,-5708.93061227,0.00019299,2]
[346376195,1734923433302,-775.97892433,0.00019299,2]
[346376196,1734923433312,-5708.93061227,0.00019299,2]
[346376197,1734923433322,-775.97892433,0.00019299,2]
[346376198,1734923433331,-5708.93061227,0.00019299,2]
[346376199,1734923433341,-775.97892433,0.00019299,2]
[346376200,1734923433350,-5708.93061227,0.00019299,2]
[346376201,1734923433359,-775.97892433,0.00019299,2]
[346376202,1734923433369,-386.52624183,0.000193,2]
[346376203,1734923433379,-5708.93061227,0.000193,2]
[346376204,1734923433389,-775.97892433,0.000193,2]
[346376205,1734923433398,-386.52624183,0.000193,2]
[346376206,1734923433408,-386.52624183,0.000193,2]
[346376207,1734923433418,-5708.93061227,0.000193,2]
[346376208,1734923433427,-775.97892433,0.000193,2]
[346376209,1734923433437,-386.52624183,0.000193,2]
[346376210,1734923433446,-386.52624183,0.000193,2]
[346376211,1734923433455,-5708.93061227,0.000193,2]
[346376212,1734923433465,-775.97892433,0.000193,2]
[346376213,1734923433477,-386.52624183,0.000193,2]
[346376214,1734923433486,-386.52624183,0.000193,2]
[346376215,1734923433496,-5708.93061227,0.000193,2]
[346376216,1734923433505,-386.52624183,0.000193,2]
[346376217,1734923433514,-775.97892433,0.000193,2]
[346376218,1734923433523,-386.52624183,0.000193,2]
[346376219,1734923433533,-2581.5452,0.000193,2]
[346376220,1734923433542,-275.3553,0.000193,2]
[346376221,1734923433552,-168.88331867,0.000193,2]
[346376222,1734923433561,-168.68853796,0.000193,2]
[346376223,1734923433570,-524.97364451,0.000193,2]
[346376224,1734923433579,-5708.93061227,0.000193,2]
[346376225,1734923433588,-386.52624183,0.000193,2]
[346376226,1734923433598,-775.97892433,0.000193,2]
[346376227,1734923433607,-512.82265876,0.000193,2]
[346376228,1734923433616,-209.48478231,0.000193,3]
[346376229,1734923433626,-318.28297629,0.000193,2]
[346376230,1734923433635,-150.0,0.00019304,4]
[346376231,1734923433645,-150.0,0.00019307,2]
[346376232,1734923433654,-150.0,0.00019309,4]
[346376233,1734923433663,-502.0,0.00019315,2]
[346376234,1734923433672,-524.9736445,0.00019333,2]
[346376235,1734923433681,-150.0,0.0001934,4]
[346376236,1734923433690,-150.0,0.00019344,4]
[346376237,1734923433699,-524.9736445,0.00019367,2]
[346376238,1734923433709,-201.6,0.00019372,2]
[346376239,1734923433718,-201.99,0.00019372,2]
[346376240,1734923433727,-202.76,0.00019372,2]
[346376241,1734923433736,-203.48,0.00019372,2]
[346376242,1734923433745,-200.23,0.00019372,2]
[346376243,1734923433755,-203.3,0.00019372,2]
[346376244,1734923433765,-361.48018638,0.00019373,2]
[346376245,1734923433774,-152.92434071,0.00019373,2]
[346376246,1734923433783,-501.08097073,0.00019373,2]
[346376247,1734923433792,-513.17462337,0.00019373,2]
[346376248,1734923433802,-501.3833241,0.00019373,2]
[346376249,1734923433811,-160.1124278,0.00019373,2]
[346376250,1734923433822,-159.87254163,0.00019373,2]
[346376251,1734923433831,-501.17530365,0.00019373,2]
[346376252,1734923433840,-500.0,0.00019373,2]
[346376253,1734923433849,-150.0,0.00019375,4]
[346376254,1734923433858,-150.0,0.00019379,4]
[346376255,1734923433867,-14111.5548666,0.00019398,2]
[346376256,1734923433876,-1257.2,0.00019398,2]
[346376257,1734923433885,-998.84,0.00019398,2]
[346376258,1734923433894,-517.87963685,0.00019398,2]
[346376259,1734923433904,-500.0,0.00019398,2]
[346376260,1734923433913,-6230.84,0.00019398,2]
[346376261,1734923433922,-857.53,0.00019398,2]
[346376262,1734923433931,-1969.665127,0.00019398,2]
[346376263,1734923433940,-163.370362,0.00019398,2]
[346376264,1734923433949,-1644.28767,0.00019398,2]
[346376265,1734923433959,-770.22,0.00019398,2]
[346376266,1734923433968,-1594.08,0.00019398,2]
[346376267,1734923433977,-1173.76,0.00019398,2]
[346376268,1734923433987,-1536.25,0.00019398,2]
[346376269,1734923433996,-1540.02,0.00019398,2]
[346376270,1734923434006,-2800.3,0.00019398,2]
[346376271,1734923434015,-6126.27,0.00019398,2]
[346376272,1734923434024,-500.0,0.00019398,2]
[346376273,1734923434033,-7400.94,0.00019398,2]
[346376274,1734923434044,-1241.2,0.00019398,2]
[346376275,1734923434053,-981.21,0.00019398,2]
[346376276,1734923434267,-1598.81,0.00019398,2]
[346376277,1734923434277,-500.0,0.00019398,2]
[346376278,1734923434289,-1115.69,0.00019398,2]
[346376279,1734923434301,-1019.25,0.00019398,2]
[346376280,1734923434311,-1157.31,0.00019398,2]
[346376281,1734923434321,-1538.67,0.00019398,2]
[346376282,1734923434330,-1345.76,0.00019398,2]
[346376283,1734923434340,-500.0,0.00019398,2]
[346376284,1734923434350,-1171.18,0.00019398,2]
[346376285,1734923434359,-500.0,0.00019398,2]
[346376286,1734923434369,-6940.88,0.00019398,2]
[346376287,1734923434378,-500.0,0.00019398,2]
[346376288,1734923434387,-1850.07,0.00019398,2]
[346376289,1734923434396,-1455.18,0.00019398,2]
[346376290,1734923434406,-2489.2,0.00019398,2]
[346376291,1734923434415,-1562.42,0.00019398,2]
[346376292,1734923434424,-1128.24,0.00019398,2]
[346376293,1734923434434,-1756.27,0.00019398,2]
[346376294,1734923434443,-505.63,0.00019398,2]
[346376295,1734923434453,-2656.74,0.00019398,2]
[346376296,1734923434462,-3945.65,0.00019398,2]
[346376297,1734923434471,-898.78,0.00019398,2]
[346376298,1734923434480,-500.0,0.00019398,2]
[346376299,1734923434490,-1137.25,0.00019398,2]
[346376300,1734923434499,-3633.96,0.00019398,2]
[346376301,1734923434508,-2279.57,0.00019398,2]